[Event "Titled Tuesday Blitz November 15 Late 2022"]
[White "Zanette, Edgard Vinicius"]
[Black "Poliakova, Varvara"]
[WhiteFideId "2109263"]
[BlackFideId "13518313"]
[WhiteElo "2211"]
[BlackElo "2099"]
[Result "1/2-1/2"]
[Round "02"]
[TimeControl "180+1"]
[Date "2022.11.16"]
[WhiteClock "0:00:08"]
[BlackClock "0:00:58"]

1. e4 {[%clk 0:02:55]}  e5 {[%clk 0:02:58]} 2. Nf3 {[%clk 0:02:55]}  Nc6 {[%clk 0:02:59]} 3. Bb5 {[%clk 0:02:55]}  f5 {[%clk 0:02:50]} 4. Nc3 {[%clk 0:02:51]}  d6 {[%clk 0:02:48]} 5. d4 {[%clk 0:02:23]}  fxe4 {[%clk 0:02:37]} 6. Nxe4 {[%clk 0:02:19]}  Nf6 {[%clk 0:02:35]} 7. Qe2 {[%clk 0:02:06]}  Nxe4 {[%clk 0:02:29]} 8. Qxe4 {[%clk 0:02:04]}  Bd7 {[%clk 0:02:29]} 9. dxe5 {[%clk 0:02:02]}  Nxe5 {[%clk 0:02:28]} 10. Nxe5 {[%clk 0:01:55]}  dxe5 {[%clk 0:02:26]} 11. Qxe5+ {[%clk 0:01:47]}  Qe7 {[%clk 0:02:26]} 12. Qxe7+ {[%clk 0:01:46]}  Bxe7 {[%clk 0:02:25]} 13. Bxd7+ {[%clk 0:01:47]}  Kxd7 {[%clk 0:02:24]} 14. Be3 {[%clk 0:01:47]}  Kc6 {[%clk 0:02:20]} 15. O-O-O {[%clk 0:01:47]}  Bd6 {[%clk 0:02:18]} 16. h3 {[%clk 0:01:39]}  Rae8 {[%clk 0:02:15]} 17. Rhe1 {[%clk 0:01:38]}  h5 {[%clk 0:02:10]} 18. h4 {[%clk 0:01:33]}  Re4 {[%clk 0:02:07]} 19. Bg5 {[%clk 0:01:23]}  Rhe8 {[%clk 0:02:06]} 20. Rxe4 {[%clk 0:01:23]}  Rxe4 {[%clk 0:02:06]} 21. Kd2 {[%clk 0:01:03]}  b5 {[%clk 0:01:50]} 22. g3 {[%clk 0:00:59]}  a5 {[%clk 0:01:47]} 23. Re1 {[%clk 0:00:56]}  Kd5 {[%clk 0:01:40]} 24. Rxe4 {[%clk 0:00:55]}  Kxe4 {[%clk 0:01:41]} 25. Ke2 {[%clk 0:00:55]}  c5 {[%clk 0:01:40]} 26. Bd2 {[%clk 0:00:50]}  a4 {[%clk 0:01:39]} 27. b3 {[%clk 0:00:50]}  c4 {[%clk 0:01:36]} 28. bxa4 {[%clk 0:00:47]}  bxa4 {[%clk 0:01:35]} 29. Bc3 {[%clk 0:00:47]}  g6 {[%clk 0:01:34]} 30. f3+ {[%clk 0:00:46]}  Kd5 {[%clk 0:01:33]} 31. g4 {[%clk 0:00:46]}  Be7 {[%clk 0:01:32]} 32. gxh5 {[%clk 0:00:43]}  gxh5 {[%clk 0:01:33]} 33. Be1 {[%clk 0:00:43]}  Kd4 {[%clk 0:01:31]} 34. c3+ {[%clk 0:00:34]}  Kd5 {[%clk 0:01:30]} 35. Bf2 {[%clk 0:00:32]}  Bf6 {[%clk 0:01:28]} 36. Be1 {[%clk 0:00:29]}  Ke5 {[%clk 0:01:26]} 37. Ke3 {[%clk 0:00:26]}  Kf5 {[%clk 0:01:26]} 38. f4 {[%clk 0:00:21]}  Bg7 {[%clk 0:01:23]} 39. Kf3 {[%clk 0:00:20]}  Bf8 {[%clk 0:01:20]} 40. Bf2 {[%clk 0:00:18]}  a3 {[%clk 0:01:18]} 41. Bd4 {[%clk 0:00:16]}  Be7 {[%clk 0:01:16]} 42. Bf2 {[%clk 0:00:15]}  Bd6 {[%clk 0:01:15]} 43. Be3 {[%clk 0:00:15]}  Bc7 {[%clk 0:01:14]} 44. Bd2 {[%clk 0:00:15]}  Ba5 {[%clk 0:01:12]} 45. Be1 {[%clk 0:00:15]}  Bd8 {[%clk 0:01:11]} 46. Bf2 {[%clk 0:00:15]}  Bf6 {[%clk 0:01:09]} 47. Be1 {[%clk 0:00:12]}  Bh8 {[%clk 0:01:05]} 48. Bd2 {[%clk 0:00:12]}  Bg7 {[%clk 0:01:04]} 49. Be1 {[%clk 0:00:12]}  Bh6 {[%clk 0:01:05]} 50. Bg3 {[%clk 0:00:11]}  Bf8 {[%clk 0:01:03]} 51. Bf2 {[%clk 0:00:11]}  Bd6 {[%clk 0:01:03]} 52. Be3 {[%clk 0:00:10]}  Bc7 {[%clk 0:01:01]} 53. Bc1 {[%clk 0:00:09]}  Bd6 {[%clk 0:00:58]} 54. Be3 {[%clk 0:00:08]} 1/2-1/2


[Site "https://www.chess.com"]

[Event "Titled Tuesday Blitz November 15 Late 2022"]
[White "Zhang, Derek"]
[Black "Figorito, Nick"]
[WhiteFideId "2087871"]
[BlackFideId "30923689"]
[WhiteElo "2087"]
[BlackElo "2357"]
[Result "1-0"]
[Round "02"]
[TimeControl "180+1"]
[Date "2022.11.16"]
[WhiteClock "0:02:08"]
[BlackClock "0:00:59"]

1. Nf3 {[%clk 0:03:00]}  Nf6 {[%clk 0:02:59]} 2. c4 {[%clk 0:03:01]}  g6 {[%clk 0:02:59]} 3. Nc3 {[%clk 0:03:02]}  c5 {[%clk 0:02:59]} 4. e3 {[%clk 0:03:02]}  Bg7 {[%clk 0:02:59]} 5. d4 {[%clk 0:03:02]}  cxd4 {[%clk 0:02:59]} 6. exd4 {[%clk 0:03:03]}  d5 {[%clk 0:03:00]} 7. Bg5 {[%clk 0:03:01]}  dxc4 {[%clk 0:03:00]} 8. Bxc4 {[%clk 0:03:01]}  O-O {[%clk 0:03:00]} 9. O-O {[%clk 0:03:01]}  Bg4 {[%clk 0:03:00]} 10. h3 {[%clk 0:02:55]}  Bxf3 {[%clk 0:03:00]} 11. Qxf3 {[%clk 0:02:56]}  Nc6 {[%clk 0:03:00]} 12. Rad1 {[%clk 0:02:52]}  Rc8 {[%clk 0:02:50]} 13. Qe3 {[%clk 0:02:40]}  e6 {[%clk 0:02:33]} 14. d5 {[%clk 0:02:32]}  Na5 {[%clk 0:02:21]} 15. Be2 {[%clk 0:02:29]}  Rxc3 {[%clk 0:01:56]} 16. bxc3 {[%clk 0:02:26]}  Nxd5 {[%clk 0:01:47]} 17. Bxd8 {[%clk 0:02:21]}  Nxe3 {[%clk 0:01:47]} 18. fxe3 {[%clk 0:02:22]}  Nc6 {[%clk 0:01:40]} 19. Bh4 {[%clk 0:02:16]}  Bxc3 {[%clk 0:01:38]} 20. Be1 {[%clk 0:02:14]}  Be5 {[%clk 0:01:36]} 21. Bf3 {[%clk 0:02:14]}  Rc8 {[%clk 0:01:25]} 22. Rc1 {[%clk 0:02:12]}  Kg7 {[%clk 0:01:22]} 23. Bxc6 {[%clk 0:02:09]}  bxc6 {[%clk 0:01:21]} 24. Rc4 {[%clk 0:02:09]}  Bf6 {[%clk 0:01:00]} 25. Bc3 {[%clk 0:02:08]}  Bxc3 {[%clk 0:00:58]} 26. Rxc3 {[%clk 0:02:09]}  c5 {[%clk 0:00:57]} 27. Rfc1 {[%clk 0:02:08]}  Rd8 {[%clk 0:00:58]} 28. Rxc5 {[%clk 0:02:08]}  Rd2 {[%clk 0:00:59]} 29. R1c2 {[%clk 0:02:08]}  Rd1+ {[%clk 0:00:59]} 30. Kf2 {[%clk 0:02:08]} 1-0


[Site "https://www.chess.com"]

[Event "Titled Tuesday Blitz November 15 Late 2022"]
[White "Zhou, Qiyu"]
[Black "Saveliev, Alexei"]
[WhiteFideId "505161"]
[BlackFideId "24128546"]
[WhiteElo "2101"]
[BlackElo "2290"]
[Result "0-1"]
[Round "02"]
[TimeControl "180+1"]
[Date "2022.11.16"]
[WhiteClock "0:00:03"]
[BlackClock "0:00:02"]

1. d4 {[%clk 0:03:00]}  g6 {[%clk 0:03:00]} 2. Bf4 {[%clk 0:02:57]}  Bg7 {[%clk 0:03:00]} 3. e4 {[%clk 0:02:53]}  d6 {[%clk 0:03:00]} 4. f3 {[%clk 0:02:52]}  Nc6 {[%clk 0:03:00]} 5. Ne2 {[%clk 0:02:51]}  Nf6 {[%clk 0:02:58]} 6. Nbc3 {[%clk 0:02:49]}  O-O {[%clk 0:02:58]} 7. Qd2 {[%clk 0:02:48]}  e5 {[%clk 0:02:57]} 8. Be3 {[%clk 0:02:46]}  exd4 {[%clk 0:02:48]} 9. Nxd4 {[%clk 0:02:47]}  d5 {[%clk 0:02:45]} 10. O-O-O {[%clk 0:02:42]}  dxe4 {[%clk 0:02:41]} 11. fxe4 {[%clk 0:02:39]}  Ng4 {[%clk 0:02:23]} 12. Nxc6 {[%clk 0:02:14]}  Qxd2+ {[%clk 0:02:23]} 13. Bxd2 {[%clk 0:02:15]}  bxc6 {[%clk 0:02:23]} 14. Rg1 {[%clk 0:02:08]}  Bd4 {[%clk 0:02:20]} 15. Bc4 {[%clk 0:02:01]}  Bxg1 {[%clk 0:02:18]} 16. Rxg1 {[%clk 0:02:02]}  Be6 {[%clk 0:02:18]} 17. Be2 {[%clk 0:01:55]}  Rad8 {[%clk 0:01:54]} 18. h3 {[%clk 0:01:53]}  Ne5 {[%clk 0:01:54]} 19. Bf4 {[%clk 0:01:48]}  f6 {[%clk 0:01:53]} 20. g4 {[%clk 0:01:45]}  g5 {[%clk 0:01:43]} 21. Be3 {[%clk 0:01:43]}  Ng6 {[%clk 0:01:35]} 22. Bxa7 {[%clk 0:01:39]}  Rfe8 {[%clk 0:01:23]} 23. Be3 {[%clk 0:01:23]}  Kg7 {[%clk 0:01:23]} 24. Rf1 {[%clk 0:01:21]}  Ne5 {[%clk 0:01:13]} 25. a3 {[%clk 0:01:11]}  Bc4 {[%clk 0:01:13]} 26. Bxc4 {[%clk 0:01:06]}  Nxc4 {[%clk 0:01:14]} 27. Bc5 {[%clk 0:01:05]}  Nd6 {[%clk 0:00:39]} 28. Re1 {[%clk 0:01:01]}  h5 {[%clk 0:00:36]} 29. gxh5 {[%clk 0:00:47]}  Rh8 {[%clk 0:00:37]} 30. e5 {[%clk 0:00:47]}  fxe5 {[%clk 0:00:36]} 31. Rxe5 {[%clk 0:00:48]}  Rxh5 {[%clk 0:00:35]} 32. Re7+ {[%clk 0:00:41]}  Nf7 {[%clk 0:00:34]} 33. Ne4 {[%clk 0:00:30]}  g4 {[%clk 0:00:33]} 34. b4 {[%clk 0:00:24]}  gxh3 {[%clk 0:00:33]} 35. Ng3 {[%clk 0:00:19]}  Rg5 {[%clk 0:00:33]} 36. Ne4 {[%clk 0:00:18]}  h2 {[%clk 0:00:21]} 37. Nxg5 {[%clk 0:00:11]}  h1=Q+ {[%clk 0:00:21]} 38. Kb2 {[%clk 0:00:12]}  Rd1 {[%clk 0:00:09]} 39. Nxf7 {[%clk 0:00:08]}  Rb1+ {[%clk 0:00:07]} 40. Kc3 {[%clk 0:00:06]}  Qf3+ {[%clk 0:00:05]} 41. Kc4 {[%clk 0:00:02]}  Qd5+ {[%clk 0:00:03]} 42. Kc3 {[%clk 0:00:02]}  Ra1 {[%clk 0:00:03]} 43. Bd4+ {[%clk 0:00:02]}  Kg6 {[%clk 0:00:03]} 44. Rxc7 {[%clk 0:00:03]}  Rxa3+ {[%clk 0:00:02]} 45. Kd2 {[%clk 0:00:02]}  Qxd4+ {[%clk 0:00:02]} 46. Kc1 {[%clk 0:00:03]}  Ra1# {[%clk 0:00:02]} 0-1


[Site "https://www.chess.com"]

[Event "Titled Tuesday Blitz November 15 Late 2022"]
[White "Zwirs, Nico"]
[Black "Fedoseev, Vladimir"]
[WhiteFideId "1036432"]
[BlackFideId "24130737"]
[WhiteElo "2381"]
[BlackElo "2726"]
[Result "0-1"]
[Round "02"]
[TimeControl "180+1"]
[Date "2022.11.15"]
[WhiteClock "0:00:01"]
[BlackClock "0:00:16"]

1. e4 {[%clk 0:03:00]}  c6 {[%clk 0:02:58]} 2. d4 {[%clk 0:03:00]}  d5 {[%clk 0:02:58]} 3. exd5 {[%clk 0:03:01]}  cxd5 {[%clk 0:02:58]} 4. c4 {[%clk 0:03:02]}  Nf6 {[%clk 0:02:57]} 5. Nc3 {[%clk 0:03:02]}  e6 {[%clk 0:02:56]} 6. Nf3 {[%clk 0:03:02]}  Bb4 {[%clk 0:02:55]} 7. cxd5 {[%clk 0:03:02]}  Nxd5 {[%clk 0:02:54]} 8. Bd2 {[%clk 0:03:02]}  Nc6 {[%clk 0:02:54]} 9. Bd3 {[%clk 0:03:03]}  O-O {[%clk 0:02:54]} 10. O-O {[%clk 0:03:03]}  Be7 {[%clk 0:02:53]} 11. Re1 {[%clk 0:02:56]}  Nf6 {[%clk 0:02:53]} 12. Bg5 {[%clk 0:02:55]}  Nb4 {[%clk 0:02:52]} 13. Bb1 {[%clk 0:02:40]}  b6 {[%clk 0:02:49]} 14. a3 {[%clk 0:02:39]}  Nbd5 {[%clk 0:02:47]} 15. Nxd5 {[%clk 0:02:39]}  Nxd5 {[%clk 0:02:45]} 16. Qd3 {[%clk 0:02:38]}  g6 {[%clk 0:02:43]} 17. Bh6 {[%clk 0:02:37]}  Re8 {[%clk 0:02:42]} 18. Bc2 {[%clk 0:02:37]}  Bf6 {[%clk 0:02:36]} 19. Ne5 {[%clk 0:02:30]}  Bb7 {[%clk 0:02:33]} 20. Ba4 {[%clk 0:02:23]}  Re7 {[%clk 0:02:32]} 21. Nc6 {[%clk 0:02:16]}  Bxc6 {[%clk 0:02:30]} 22. Bxc6 {[%clk 0:02:16]}  Rc8 {[%clk 0:02:30]} 23. Bb5 {[%clk 0:02:14]}  Nc7 {[%clk 0:02:22]} 24. Rad1 {[%clk 0:01:24]}  Nxb5 {[%clk 0:02:21]} 25. Qxb5 {[%clk 0:01:25]}  Rd7 {[%clk 0:02:20]} 26. Be3 {[%clk 0:01:17]}  Rd5 {[%clk 0:02:15]} 27. Qa4 {[%clk 0:01:15]}  a5 {[%clk 0:02:12]} 28. g3 {[%clk 0:01:11]}  b5 {[%clk 0:02:11]} 29. Qb3 {[%clk 0:01:09]}  Rc4 {[%clk 0:02:08]} 30. Re2 {[%clk 0:00:57]}  a4 {[%clk 0:02:07]} 31. Qa2 {[%clk 0:00:53]}  Bxd4 {[%clk 0:02:06]} 32. Bxd4 {[%clk 0:00:52]}  Rdxd4 {[%clk 0:02:06]} 33. Rxd4 {[%clk 0:00:49]}  Rc1+ {[%clk 0:02:05]} 34. Kg2 {[%clk 0:00:48]}  Qxd4 {[%clk 0:02:04]} 35. b4 {[%clk 0:00:30]}  Qd1 {[%clk 0:01:54]} 36. Qd2 {[%clk 0:00:17]}  Qf1+ {[%clk 0:01:52]} 37. Kf3 {[%clk 0:00:17]}  Qh1+ {[%clk 0:01:52]} 38. Kg4 {[%clk 0:00:15]}  Rc4+ {[%clk 0:01:41]} 39. f4 {[%clk 0:00:15]}  h5+ {[%clk 0:01:35]} 40. Kg5 {[%clk 0:00:16]}  Kg7 {[%clk 0:01:13]} 41. Qb2+ {[%clk 0:00:14]}  Kh7 {[%clk 0:01:13]} 42. Qf6 {[%clk 0:00:10]}  Qd5+ {[%clk 0:01:10]} 43. Re5 {[%clk 0:00:07]}  Qd7 {[%clk 0:01:07]} 44. Kh4 {[%clk 0:00:04]}  Rc7 {[%clk 0:00:57]} 45. h3 {[%clk 0:00:03]}  Rb7 {[%clk 0:00:51]} 46. Rc5 {[%clk 0:00:03]}  Qe8 {[%clk 0:00:32]} 47. Rc2 {[%clk 0:00:03]}  Rd7 {[%clk 0:00:20]} 48. Rc5 {[%clk 0:00:02]}  Rd5 {[%clk 0:00:16]} 49. Rxd5 {[%clk 0:00:01]}  exd5 {[%clk 0:00:16]} 0-1


[Site "https://www.chess.com"]

[Event "Titled Tuesday Blitz November 15 Late 2022"]
[White "Al-Tarboush, Ward"]
[Black "Arnold, Ken"]
[WhiteFideId "7601450"]
[BlackFideId "2056836"]
[WhiteElo "2273"]
[BlackElo "2334"]
[Result "0-1"]
[Round "03"]
[TimeControl "180+1"]
[Date "2022.11.16"]
[WhiteClock "0:01:13"]
[BlackClock "0:00:11"]

1. e4 {[%clk 0:03:00]}  c6 {[%clk 0:02:59]} 2. Nf3 {[%clk 0:03:01]}  d5 {[%clk 0:03:00]} 3. Nc3 {[%clk 0:03:01]}  dxe4 {[%clk 0:02:58]} 4. Nxe4 {[%clk 0:03:02]}  Nf6 {[%clk 0:02:58]} 5. Nxf6+ {[%clk 0:03:02]}  exf6 {[%clk 0:02:58]} 6. Bc4 {[%clk 0:03:03]}  Bd6 {[%clk 0:02:58]} 7. Qe2+ {[%clk 0:03:03]}  Qe7 {[%clk 0:02:58]} 8. Qxe7+ {[%clk 0:03:04]}  Bxe7 {[%clk 0:02:55]} 9. O-O {[%clk 0:03:05]}  O-O {[%clk 0:02:54]} 10. d4 {[%clk 0:03:05]}  Bd6 {[%clk 0:02:54]} 11. Re1 {[%clk 0:03:04]}  Bg4 {[%clk 0:02:54]} 12. a4 {[%clk 0:03:04]}  Bxf3 {[%clk 0:02:54]} 13. gxf3 {[%clk 0:03:05]}  a5 {[%clk 0:02:53]} 14. Bd3 {[%clk 0:03:04]}  Na6 {[%clk 0:02:50]} 15. c3 {[%clk 0:03:04]}  Nc7 {[%clk 0:02:49]} 16. Bc4 {[%clk 0:03:02]}  Rfe8 {[%clk 0:02:48]} 17. Be3 {[%clk 0:03:02]}  g6 {[%clk 0:02:44]} 18. Kg2 {[%clk 0:03:02]}  f5 {[%clk 0:02:44]} 19. Bd2 {[%clk 0:03:01]}  Nd5 {[%clk 0:02:43]} 20. Bxd5 {[%clk 0:03:01]}  cxd5 {[%clk 0:02:42]} 21. Rxe8+ {[%clk 0:03:02]}  Rxe8 {[%clk 0:02:40]} 22. Re1 {[%clk 0:03:03]}  Rb8 {[%clk 0:02:36]} 23. b4 {[%clk 0:03:01]}  b5 {[%clk 0:02:30]} 24. bxa5 {[%clk 0:02:54]}  bxa4 {[%clk 0:02:29]} 25. a6 {[%clk 0:02:53]}  Ra8 {[%clk 0:02:22]} 26. Bh6 {[%clk 0:02:44]}  Bf8 {[%clk 0:02:21]} 27. Bf4 {[%clk 0:02:37]}  a3 {[%clk 0:02:12]} 28. a7 {[%clk 0:02:38]}  Rxa7 {[%clk 0:02:07]} 29. Re8 {[%clk 0:02:38]}  Kg7 {[%clk 0:01:58]} 30. Re1 {[%clk 0:02:31]}  a2 {[%clk 0:01:57]} 31. Ra1 {[%clk 0:02:30]}  f6 {[%clk 0:01:51]} 32. Kf1 {[%clk 0:02:28]}  Kf7 {[%clk 0:01:42]} 33. Ke2 {[%clk 0:02:28]}  g5 {[%clk 0:01:38]} 34. Bc1 {[%clk 0:02:25]}  Bd6 {[%clk 0:01:33]} 35. h3 {[%clk 0:02:22]}  h5 {[%clk 0:01:18]} 36. Kd3 {[%clk 0:02:22]}  h4 {[%clk 0:01:15]} 37. Bb2 {[%clk 0:01:55]}  g4 {[%clk 0:01:14]} 38. fxg4 {[%clk 0:01:55]}  fxg4 {[%clk 0:01:13]} 39. hxg4 {[%clk 0:01:56]}  h3 {[%clk 0:01:13]} 40. Rh1 {[%clk 0:01:54]}  h2 {[%clk 0:01:03]} 41. Kc2 {[%clk 0:01:50]}  Rb7 {[%clk 0:00:44]} 42. f3 {[%clk 0:01:44]}  Bf4 {[%clk 0:00:43]} 43. Ra1 {[%clk 0:01:37]}  Be3 {[%clk 0:00:35]} 44. Rh1 {[%clk 0:01:33]}  Bg1 {[%clk 0:00:35]} 45. Kc1 {[%clk 0:01:33]}  f5 {[%clk 0:00:31]} 46. g5 {[%clk 0:01:31]}  f4 {[%clk 0:00:31]} 47. Kc2 {[%clk 0:01:24]}  Kg6 {[%clk 0:00:31]} 48. c4 {[%clk 0:01:22]}  dxc4 {[%clk 0:00:23]} 49. d5 {[%clk 0:01:22]}  Kxg5 {[%clk 0:00:22]} 50. Be5 {[%clk 0:01:21]}  Kf5 {[%clk 0:00:18]} 51. Bc3 {[%clk 0:01:20]}  Rb1 {[%clk 0:00:15]} 52. d6 {[%clk 0:01:20]}  Ke6 {[%clk 0:00:15]} 53. Bd4 {[%clk 0:01:19]}  a1=Q {[%clk 0:00:12]} 54. Bxa1 {[%clk 0:01:19]}  Rxa1 {[%clk 0:00:12]} 55. Kc3 {[%clk 0:01:20]}  Rf1 {[%clk 0:00:12]} 56. Kxc4 {[%clk 0:01:20]}  Kxd6 {[%clk 0:00:12]} 57. Kd3 {[%clk 0:01:20]}  Rxf3+ {[%clk 0:00:12]} 58. Ke4 {[%clk 0:01:20]}  Rf2 {[%clk 0:00:12]} 59. Kf5 {[%clk 0:01:20]}  Kd5 {[%clk 0:00:13]} 60. Kg4 {[%clk 0:01:20]}  Ke4 {[%clk 0:00:13]} 61. Kh3 {[%clk 0:01:20]}  Ke3 {[%clk 0:00:13]} 62. Kg4 {[%clk 0:01:20]}  Ke2 {[%clk 0:00:14]} 63. Kh3 {[%clk 0:01:21]}  Kf1 {[%clk 0:00:14]} 64. Rxg1+ {[%clk 0:01:12]}  hxg1=Q {[%clk 0:00:10]} 65. Kh4 {[%clk 0:01:13]}  Rh2# {[%clk 0:00:11]} 0-1


[Site "https://www.chess.com"]

[Event "Titled Tuesday Blitz November 15 Late 2022"]
[White "Ali Abdullahi, Farah"]
[Black "Graif, William"]
[WhiteFideId "16100212"]
[BlackFideId "2609835"]
[WhiteElo "2320"]
[BlackElo "2205"]
[Result "1-0"]
[Round "03"]
[TimeControl "180+1"]
[Date "2022.11.16"]
[WhiteClock "0:01:44"]
[BlackClock "0:00:01"]

1. d4 {[%clk 0:02:58]}  Nf6 {[%clk 0:02:54]} 2. Nf3 {[%clk 0:02:59]}  d5 {[%clk 0:02:53]} 3. c4 {[%clk 0:03:00]}  e6 {[%clk 0:02:53]} 4. cxd5 {[%clk 0:03:01]}  exd5 {[%clk 0:02:54]} 5. Nc3 {[%clk 0:03:01]}  c6 {[%clk 0:02:53]} 6. Bg5 {[%clk 0:03:02]}  h6 {[%clk 0:02:47]} 7. Bh4 {[%clk 0:03:01]}  Bf5 {[%clk 0:02:32]} 8. e3 {[%clk 0:03:01]}  Nbd7 {[%clk 0:02:28]} 9. Bd3 {[%clk 0:02:57]}  Bxd3 {[%clk 0:02:23]} 10. Qxd3 {[%clk 0:02:58]}  Be7 {[%clk 0:02:16]} 11. O-O {[%clk 0:02:58]}  O-O {[%clk 0:02:11]} 12. Bxf6 {[%clk 0:02:53]}  Nxf6 {[%clk 0:02:03]} 13. Ne5 {[%clk 0:02:53]}  Re8 {[%clk 0:01:54]} 14. f4 {[%clk 0:02:50]}  Bf8 {[%clk 0:01:38]} 15. Qf5 {[%clk 0:02:43]}  Qc8 {[%clk 0:01:30]} 16. Qd3 {[%clk 0:02:39]}  Ne4 {[%clk 0:01:21]} 17. Nxe4 {[%clk 0:02:39]}  dxe4 {[%clk 0:01:21]} 18. Qb3 {[%clk 0:02:31]}  Re7 {[%clk 0:00:44]} 19. f5 {[%clk 0:02:30]}  Rc7 {[%clk 0:00:27]} 20. f6 {[%clk 0:02:30]}  Qe6 {[%clk 0:00:19]} 21. fxg7 {[%clk 0:02:25]}  Bxg7 {[%clk 0:00:18]} 22. Qxe6 {[%clk 0:02:18]}  fxe6 {[%clk 0:00:19]} 23. Nc4 {[%clk 0:02:10]}  Rf8 {[%clk 0:00:18]} 24. Nd2 {[%clk 0:02:10]}  h5 {[%clk 0:00:13]} 25. Nxe4 {[%clk 0:02:10]}  Rcf7 {[%clk 0:00:10]} 26. Rxf7 {[%clk 0:02:09]}  Rxf7 {[%clk 0:00:10]} 27. Rf1 {[%clk 0:02:09]}  Bh6 {[%clk 0:00:10]} 28. Rxf7 {[%clk 0:02:08]}  Kxf7 {[%clk 0:00:11]} 29. Kf2 {[%clk 0:02:08]}  Ke7 {[%clk 0:00:11]} 30. Kf3 {[%clk 0:02:08]}  b6 {[%clk 0:00:10]} 31. b3 {[%clk 0:02:08]}  a6 {[%clk 0:00:09]} 32. h3 {[%clk 0:02:04]}  Kf7 {[%clk 0:00:09]} 33. g4 {[%clk 0:02:03]}  Kg6 {[%clk 0:00:09]} 34. Ng3 {[%clk 0:01:57]}  hxg4+ {[%clk 0:00:09]} 35. hxg4 {[%clk 0:01:58]}  Bg5 {[%clk 0:00:07]} 36. Nh5 {[%clk 0:01:58]}  Bh6 {[%clk 0:00:07]} 37. Ng3 {[%clk 0:01:55]}  Bg5 {[%clk 0:00:06]} 38. Ne4 {[%clk 0:01:55]}  Bh6 {[%clk 0:00:07]} 39. Nd6 {[%clk 0:01:55]}  Kf6 {[%clk 0:00:06]} 40. Nc4 {[%clk 0:01:54]}  b5 {[%clk 0:00:05]} 41. Ne5 {[%clk 0:01:54]}  c5 {[%clk 0:00:05]} 42. Nd7+ {[%clk 0:01:53]}  Ke7 {[%clk 0:00:05]} 43. Nxc5 {[%clk 0:01:54]}  a5 {[%clk 0:00:05]} 44. Nb7 {[%clk 0:01:53]}  a4 {[%clk 0:00:06]} 45. bxa4 {[%clk 0:01:54]}  bxa4 {[%clk 0:00:06]} 46. a3 {[%clk 0:01:52]}  Bf8 {[%clk 0:00:06]} 47. Nc5 {[%clk 0:01:52]}  Kf7 {[%clk 0:00:04]} 48. Nxa4 {[%clk 0:01:52]}  Bxa3 {[%clk 0:00:05]} 49. Nc5 {[%clk 0:01:52]}  Bb4 {[%clk 0:00:04]} 50. Ke4 {[%clk 0:01:51]}  Kf6 {[%clk 0:00:04]} 51. g5+ {[%clk 0:01:49]}  Kxg5 {[%clk 0:00:02]} 52. Nxe6+ {[%clk 0:01:49]}  Kf6 {[%clk 0:00:03]} 53. Nf4 {[%clk 0:01:49]}  Kf7 {[%clk 0:00:02]} 54. d5 {[%clk 0:01:48]}  Bc5 {[%clk 0:00:01]} 55. Nd3 {[%clk 0:01:48]}  Bb6 {[%clk 0:00:01]} 56. Kf4 {[%clk 0:01:48]}  Ke7 {[%clk 0:00:01]} 57. e4 {[%clk 0:01:48]}  Kd6 {[%clk 0:00:01]} 58. Nb4 {[%clk 0:01:44]} 1-0


[Site "https://www.chess.com"]

[Event "Titled Tuesday Blitz November 15 Late 2022"]
[White "Artemenko, Oleg"]
[Black "Nugumanov, Bakhtiyar"]
[WhiteFideId "14201798"]
[BlackFideId "13701797"]
[WhiteElo "2287"]
[BlackElo "2287"]
[Result "1-0"]
[Round "03"]
[TimeControl "180+1"]
[Date "2022.11.16"]
[WhiteClock "0:00:56"]
[BlackClock "0:00:01"]

1. g4 {[%clk 0:03:00]}  d5 {[%clk 0:02:57]} 2. Bg2 {[%clk 0:03:00]}  Bxg4 {[%clk 0:02:54]} 3. c4 {[%clk 0:02:59]}  dxc4 {[%clk 0:02:53]} 4. Bxb7 {[%clk 0:02:58]}  Nd7 {[%clk 0:02:54]} 5. Bxa8 {[%clk 0:02:58]}  Qxa8 {[%clk 0:02:55]} 6. f3 {[%clk 0:02:58]}  e5 {[%clk 0:02:54]} 7. Nc3 {[%clk 0:02:58]}  Ngf6 {[%clk 0:02:43]} 8. Qa4 {[%clk 0:02:57]}  Be6 {[%clk 0:02:34]} 9. b3 {[%clk 0:02:55]}  Bc5 {[%clk 0:01:53]} 10. Ba3 {[%clk 0:02:53]}  O-O {[%clk 0:01:49]} 11. Bxc5 {[%clk 0:02:48]}  Nxc5 {[%clk 0:01:50]} 12. Qa5 {[%clk 0:02:49]}  Qc6 {[%clk 0:01:17]} 13. bxc4 {[%clk 0:02:27]}  Bxc4 {[%clk 0:01:13]} 14. Rc1 {[%clk 0:02:17]}  Be6 {[%clk 0:01:01]} 15. Qb5 {[%clk 0:01:53]}  Qd6 {[%clk 0:00:54]} 16. Qb2 {[%clk 0:01:49]}  a6 {[%clk 0:00:35]} 17. h4 {[%clk 0:01:48]}  Nh5 {[%clk 0:00:31]} 18. Ne4 {[%clk 0:01:38]}  Nxe4 {[%clk 0:00:29]} 19. fxe4 {[%clk 0:01:39]}  Ng3 {[%clk 0:00:27]} 20. Rh2 {[%clk 0:01:38]}  Nxe4 {[%clk 0:00:28]} 21. Nf3 {[%clk 0:01:38]}  Bg4 {[%clk 0:00:23]} 22. Qxe5 {[%clk 0:01:33]}  Qb4 {[%clk 0:00:12]} 23. Rg2 {[%clk 0:01:29]}  h5 {[%clk 0:00:10]} 24. Qd4 {[%clk 0:01:28]}  Qe7 {[%clk 0:00:09]} 25. Qe5 {[%clk 0:01:25]}  Qb4 {[%clk 0:00:09]} 26. Qd4 {[%clk 0:01:18]}  Qe7 {[%clk 0:00:09]} 27. Qe3 {[%clk 0:01:18]}  f5 {[%clk 0:00:05]} 28. Ng5 {[%clk 0:01:17]}  Rd8 {[%clk 0:00:03]} 29. Qb3+ {[%clk 0:01:14]}  Kh8 {[%clk 0:00:03]} 30. Nf7+ {[%clk 0:01:07]}  Kh7 {[%clk 0:00:03]} 31. Nxd8 {[%clk 0:01:06]}  Qxh4+ {[%clk 0:00:03]} 32. Kd1 {[%clk 0:01:02]}  Qh1+ {[%clk 0:00:03]} 33. Kc2 {[%clk 0:01:02]}  Qxg2 {[%clk 0:00:03]} 34. Ne6 {[%clk 0:01:02]}  Qxe2 {[%clk 0:00:04]} 35. Qd5 {[%clk 0:01:01]}  Nf2 {[%clk 0:00:02]} 36. Qc6 {[%clk 0:00:57]}  Qxd2+ {[%clk 0:00:01]} 37. Kxd2 {[%clk 0:00:56]} 1-0


[Site "https://www.chess.com"]